fUSD/lending_fUSD_20240422
["ID","MTS","AMOUNT","RATE_DAILY","PERIOD"]
[323168809,1713766262318,-1437.26,0.00016438,2]
[323168810,1713766262327,-500.0,0.00016438,2]
[323168811,1713766262337,-500.0,0.00016438,2]
[323168812,1713766262346,-4561.36,0.00016438,2]
[323168813,1713766262355,-516.95,0.00016438,2]
[323168814,1713766262365,-1318.98,0.00016438,2]
[323168815,1713766262374,-13453.0,0.00016438,2]
[323168816,1713766262383,-500.0,0.00016438,2]
[323168817,1713766262392,-8400.56,0.00016438,2]
[323168818,1713766262402,-4227.75,0.00016438,2]
[323168819,1713766262411,-713.39,0.00016438,2]
[323168820,1713766262421,-1517.09,0.00016438,2]
[323168821,1713766262430,-1970.98,0.00016438,2]
[323168822,1713766262439,-500.0,0.00016438,2]
[323168823,1713766262449,-526.14,0.00016438,2]
[323168824,1713766262459,-1459.82,0.00016438,2]
[323168825,1713766262469,-903.09,0.00016438,2]
[323168826,1713766262478,-28102.7,0.00016438,2]
[323168827,1713766262487,-500.0,0.00016438,2]
[323168828,1713766262496,-516.19,0.00016438,2]
[323168829,1713766262505,-19855.07,0.00016438,2]
[323168830,1713766262514,-500.0,0.00016438,2]
[323168831,1713766262524,-501.01495042,0.00016438,2]
[323168832,1713766262535,-500.0,0.00016438,2]
[323168833,1713766262545,-500.0,0.00016438,2]
[323168834,1713766262555,-13175.94,0.00016438,2]
[323168835,1713766262564,-1319.54,0.00016438,2]
[323168836,1713766262574,-500.62593768,0.00016438,2]
[323168837,1713766262584,-503.09,0.00016438,2]
[323168838,1713766262593,-725.27,0.00016438,2]
[323168839,1713766262604,-500.0,0.00016438,2]
[323168840,1713766262616,-2281.03,0.00016438,2]
[323168841,1713766262628,-357.819195,0.00016438,2]
[323168842,1713766262637,-500.0,0.00016438,2]
[323168843,1713766262647,-357.819195,0.00016438,2]
[323168844,1713766262657,-10151.31,0.00016438,2]
[323168845,1713766262669,-357.819195,0.00016438,2]
[323168846,1713766262679,-357.819195,0.00016438,2]
[323168847,1713766262688,-500.0,0.00016438,2]
[323168848,1713766262700,-357.819195,0.00016438,2]
[323168849,1713766262709,-5215.85,0.00016438,2]
[323168850,1713766262719,-357.819195,0.00016438,2]
[323168851,1713766262730,-2404.76,0.00016438,2]
[323168852,1713766262740,-357.819195,0.00016438,2]
[323168853,1713766262961,-357.819195,0.00016438,2]
[323168854,1713766263000,-500.0,0.00016438,2]
[323168855,1713766263011,-357.819195,0.00016438,2]
[323168856,1713766263021,-357.819195,0.00016438,2]
[323168857,1713766263030,-357.819195,0.00016438,2]
[323168858,1713766263042,-5534.65,0.00016438,2]
[323168859,1713766263051,-1435.89,0.00016438,2]
[323168860,1713766263060,-357.819202,0.00016438,2]
[323168861,1713766263069,-905.0,0.00016438,2]
[323168862,1713766263078,-997.89,0.00016438,2]
[323168863,1713766263088,-1063.86,0.00016438,2]
[323168864,1713766263097,-500.0,0.00016438,2]
[323168865,1713766263107,-1876.17,0.00016438,2]
[323168866,1713766263117,-11826.41,0.00016438,2]
[323168867,1713766263127,-4064.42,0.00016438,2]
[323168868,1713766263137,-500.0,0.00016438,2]
[323168869,1713766263148,-163.018827,0.00016438,2]
[323168870,1713766263157,-500.0,0.00016438,2]
[323168871,1713766263168,-2015.0,0.00016438,2]
[323168872,1713766263179,-558.25,0.00016438,2]
[323168873,1713766263190,-163.018827,0.00016438,2]
[323168874,1713766263201,-1564.49,0.00016438,2]
[323168875,1713766263212,-163.018827,0.00016438,2]
[323168876,1713766263222,-163.018827,0.00016438,2]
[323168877,1713766263234,-163.018827,0.00016438,2]
[323168878,1713766263244,-999.28,0.00016438,2]
[323168879,1713766263255,-748.92,0.00016438,2]
[323168880,1713766263265,-3401.78,0.00016438,2]
[323168881,1713766263275,-4491.37,0.00016438,2]
[323168882,1713766263284,-254.157178,0.00016438,2]
[323168883,1713766263293,-550.42,0.00016438,2]
[323168884,1713766263303,-254.157178,0.00016438,2]
[323168885,1713766263312,-163.018827,0.00016438,2]
[323168886,1713766263321,-254.157178,0.00016438,2]
[323168887,1713766263331,-500.0,0.00016438,2]
[323168888,1713766263340,-254.157178,0.00016438,2]
[323168889,1713766263349,-500.0,0.00016438,2]
[323168890,1713766263358,-254.157178,0.00016438,2]
[323168891,1713766263368,-1767.8,0.00016438,2]
[323168892,1713766263377,-254.157178,0.00016438,2]
[323168893,1713766263387,-500.0,0.00016438,2]
[323168894,1713766263397,-500.0,0.00016438,2]
[323168895,1713766263406,-163.018827,0.00016438,2]
[323168896,1713766263416,-163.018827,0.00016438,2]
[323168897,1713766263426,-163.018827,0.00016438,2]
[323168898,1713766263436,-163.018827,0.00016438,2]
[323168899,1713766263445,-254.157178,0.00016438,2]
[323168900,1713766263455,-163.018827,0.00016438,2]
[323168901,1713766263465,-254.157178,0.00016438,2]
[323168902,1713766263477,-163.018833,0.00016438,2]
[323168903,1713766263488,-7858.9,0.00016438,2]
[323168904,1713766263498,-254.157178,0.00016438,2]
[323168905,1713766263508,-4820.86,0.00016438,2]
[323168906,1713766263518,-151.0,0.00016438,2]
[323168907,1713766263528,-500.0,0.00016438,2]
[323168908,1713766263537,-254.157178,0.00016438,2]
[323168909,1713766263547,-151.0,0.00016438,2]
[323168910,1713766263556,-235.846857,0.00016438,2]
[323168911,1713766263566,-254.157178,0.00016438,2]
[323168912,1713766263575,-151.0,0.00016438,2]
[323168913,1713766263585,-235.846857,0.00016438,2]
[323168914,1713766263595,-172.21490025,0.00016438,2]
[323168915,1713766263606,-254.15717,0.00016438,2]
[323168916,1713766263615,-500.0,0.00016438,2]
[323168917,1713766263625,-235.846857,0.00016438,2]
[323168918,1713766263634,-151.0,0.00016438,2]
[323168919,1713766263643,-235.846857,0.00016438,2]
[323168920,1713766263654,-6368.09,0.00016438,2]
[323168921,1713766263664,-500.0,0.00016438,2]
[323168922,1713766263676,-151.0,0.00016438,2]
[323168923,1713766263685,-235.846857,0.00016438,2]
[323168924,1713766263694,-235.846857,0.00016438,2]
[323168925,1713766263703,-151.0,0.00016438,2]
[323168926,1713766263713,-500.0,0.00016438,2]
[323168927,1713766263721,-2974.2,0.00016438,2]
[323168928,1713766263731,-2726.84,0.00016438,2]
[323168929,1713766263740,-608.74,0.00016438,2]
[323168930,1713766263749,-500.0,0.00016438,2]
[323168931,1713766263758,-17102.52,0.00016438,2]
[323168932,1713766263767,-500.0,0.00016438,2]
[323168933,1713766263777,-151.0,0.00016438,2]
[323168934,1713766263786,-500.0,0.00016438,2]
[323168935,1713766263796,-235.846857,0.00016438,2]
[323168936,1713766263805,-151.0,0.00016438,2]
[323168937,1713766263815,-1315.38,0.00016438,2]
[323168938,1713766263824,-235.846857,0.00016438,2]
[323168939,1713766263834,-500.0,0.00016438,2]
[323168940,1713766263843,-151.0,0.00016438,2]
[323168941,1713766263853,-235.846857,0.00016438,2]
[323168942,1713766263862,-235.846857,0.00016438,2]
[323168943,1713766263871,-151.0,0.00016438,2]
[323168944,1713766263881,-151.0,0.00016438,2]
[323168945,1713766263890,-235.846857,0.00016438,2]
[323168946,1713766263899,-151.0,0.00016438,2]
[323168947,1713766263910,-235.846855,0.00016438,2]
[323168948,1713766263924,-702.82,0.00016438,2]
[323168949,1713766263933,-2498.66,0.00016438,2]
[323168950,1713766263943,-1307.16,0.00016438,2]
[323168951,1713766263952,-500.0,0.00016438,2]
[323168952,1713766263963,-1706.01,0.00016438,2]
[323168953,1713766263972,-500.0,0.00016438,2]
[323168954,1713766263981,-540.18,0.00016438,2]
[323168955,1713766263993,-501.3763985,0.00016438,2]
[323168956,1713766264003,-500.0,0.00016438,2]
[323168957,1713766264013,-500.0,0.00016438,2]
[323168958,1713766264023,-4984.36,0.00016438,2]
[323168959,1713766264033,-4056.5,0.00016438,2]
[323168960,1713766264043,-500.0,0.00016438,2]
[323168961,1713766264053,-519.91,0.00016438,2]
[323168962,1713766264063,-500.0,0.00016438,2]
[323168963,1713766264073,-5420.78,0.00016438,2]
[323168964,1713766264083,-500.0,0.00016438,2]
[323168965,1713766264094,-500.0,0.00016438,2]
[323168966,1713766264104,-500.0,0.00016438,2]
[323168967,1713766264114,-500.0,0.00016438,2]
[323168968,1713766264126,-151.0,0.00016438,2]
[323168969,1713766264135,-536.37,0.00016438,2]
[323168970,1713766264145,-151.0,0.00016438,2]
[323168971,1713766264154,-151.0,0.00016438,2]
[323168972,1713766264163,-151.0,0.00016438,2]
[323168973,1713766264175,-500.0,0.00016438,2]
[323168974,1713766264183,-500.0,0.00016438,2]
[323168975,1713766264193,-32924.71,0.00016438,2]
[323168976,1713766264203,-151.0,0.00016438,2]
[323168977,1713766264213,-151.0,0.00016438,2]
[323168978,1713766264222,-1661.21,0.00016438,2]
[323168979,1713766264232,-152.645599,0.00016438,2]
[323168980,1713766264242,-887.03,0.00016438,2]
[323168981,1713766264251,-151.0,0.00016438,2]
[323168982,1713766264261,-622.01,0.00016438,2]
[323168983,1713766264270,-266.869548,0.00016438,2]
[323168984,1713766264280,-529.16,0.00016438,2]
[323168985,1713766264289,-3481.44,0.00016438,2]
[323168986,1713766264299,-539.24,0.00016438,2]
[323168987,1713766264309,-500.0,0.00016438,2]
[323168988,1713766264318,-2610.03,0.00016438,2]
[323168989,1713766264329,-151.0,0.00016438,2]
[323168990,1713766264338,-14865.73,0.00016438,2]
[323168991,1713766264348,-151.0,0.00016438,2]
[323168992,1713766264357,-2610.03,0.00016438,2]
[323168993,1713766264366,-151.0,0.00016438,2]
[323168994,1713766264376,-2610.03,0.00016438,2]
[323168995,1713766264385,-501.62152915,0.00016438,2]
[323168996,1713766264395,-501.39447684,0.00016438,2]
[323168997,1713766264405,-2610.03,0.00016438,2]
[323168998,1713766264416,-151.0,0.00016438,2]
[323168999,1713766264426,-500.0,0.00016438,2]
[323169000,1713766264435,-2610.03,0.00016438,2]
[323169001,1713766264445,-500.0,0.00016438,2]
[323169002,1713766264455,-241.596134,0.00016438,2]
[323169003,1713766264464,-2483.3,0.00016438,2]
[323169004,1713766264474,-2610.03,0.00016438,2]
[323169005,1713766264483,-72260.12036808,0.00016438,2]
[323169006,1713766264493,-285.342388,0.00016438,2]
[323169007,1713766264503,-2610.03,0.00016438,2]
[323169008,1713766264511,-1306.42,0.00016438,2]
[323169009,1713766264520,-2610.03,0.00016438,2]
[323169010,1713766264529,-2610.03,0.00016438,2]
[323169011,1713766264539,-2610.03,0.00016438,2]
[323169012,1713766264548,-587.56,0.00016438,2]
[323169013,1713766264557,-500.0,0.00016438,2]
[323169014,1713766264566,-550.26,0.00016438,2]
[323169015,1713766264576,-567.86,0.00016438,2]
[323169016,1713766264586,-528.47,0.00016438,2]
[323169017,1713766264595,-500.0,0.00016438,2]
[323169018,1713766264604,-2472.02,0.00016438,2]
[323169019,1713766264614,-2781.01,0.00016438,2]
[323169020,1713766264623,-500.0,0.00016438,2]
[323169021,1713766264632,-581.29,0.00016438,2]
[323169022,1713766264641,-640.58,0.00016438,2]
[323169023,1713766264651,-9569.6,0.00016438,2]
[323169024,1713766264661,-1412.38,0.00016438,2]
[323169025,1713766264673,-9685.46,0.00016438,2]
[323169026,1713766264683,-253.588965,0.00016438,2]
[323169027,1713766264692,-253.588965,0.00016438,2]
[323169028,1713766264702,-7471.47,0.00016438,2]
[323169029,1713766264711,-253.588965,0.00016438,2]
[323169030,1713766264721,-4238.98,0.00016438,2]
[323169031,1713766264730,-675.73,0.00016438,2]
[323169032,1713766264740,-253.588965,0.00016438,2]
[323169033,1713766264749,-550.63,0.00016438,2]
[323169034,1713766264759,-253.588965,0.00016438,2]
[323169035,1713766264768,-253.588965,0.00016438,2]
[323169036,1713766264779,-218.38554183,0.00016438,2]
[323169037,1713766264789,-1110.69,0.00016438,2]
[323169038,1713766264798,-253.588965,0.00016438,2]
[323169039,1713766264808,-253.588965,0.00016438,2]
[323169040,1713766264817,-500.0,0.00016438,2]
[323169041,1713766264827,-253.588965,0.00016438,2]
[323169042,1713766264837,-500.0,0.00016438,2]
[323169043,1713766264847,-253.588965,0.00016438,2]
[323169044,1713766264856,-12822.48,0.00016438,2]
[323169045,1713766264866,-253.588965,0.00016438,2]
[323169046,1713766264876,-500.0,0.00016438,2]
[323169047,1713766264885,-500.0,0.00016438,2]
[323169048,1713766264894,-253.588967,0.00016438,2]
[323169049,1713766264905,-622.24,0.00016438,2]
[323169050,1713766264920,-500.0,0.00016438,2]
[323169051,1713766264930,-630.23,0.00016438,2]
[323169052,1713766264939,-832.85,0.00016438,2]
[323169053,1713766264951,-11883.7,0.00016438,2]
[323169054,1713766264961,-562.54,0.00016438,2]
[323169055,1713766264970,-500.0,0.00016438,2]
[323169056,1713766264980,-500.0,0.00016438,2]
[323169057,1713766264991,-500.0,0.00016438,2]
[323169058,1713766265001,-500.0,0.00016438,2]
[323169059,1713766265010,-14874.97,0.00016438,2]
[323169060,1713766265020,-200.0,0.00016438,2]
[323169061,1713766265030,-300.0,0.00016438,2]
[323169062,1713766265039,-5167.0,0.00016438,2]
[323169063,1713766265049,-16646.65,0.00016438,2]
[323169064,1713766265059,-186.68408,0.00016438,2]
[323169065,1713766265068,-186.68408,0.00016438,2]
[323169066,1713766265078,-186.68408,0.00016438,2]
[323169067,1713766265088,-186.68408,0.00016438,2]
[323169068,1713766265099,-186.68408,0.00016438,2]
[323169069,1713766265110,-186.68408,0.00016438,2]
[323169070,1713766265120,-186.68408,0.00016438,2]
[323169071,1713766265130,-186.68408,0.00016438,2]
[323169072,1713766265140,-186.68408,0.00016438,2]
[323169073,1713766265150,-186.68408,0.00016438,2]
[323169074,1713766265160,-186.68408,0.00016438,2]
[323169075,1713766265171,-186.68408,0.00016438,2]
[323169076,1713766265180,-186.68408,0.00016438,2]
[323169077,1713766265190,-186.68408,0.00016438,2]
[323169078,1713766265200,-186.68408,0.00016438,2]
[323169079,1713766265209,-186.68408,0.00016438,2]
[323169080,1713766265220,-186.68408,0.00016438,2]
[323169081,1713766265229,-186.68408,0.00016438,2]
[323169082,1713766265239,-186.68408,0.00016438,2]
[323169083,1713766265249,-186.68408,0.00016438,2]
[323169084,1713766265259,-151.0,0.00016438,2]
[323169085,1713766265269,-151.0,0.00016438,2]
[323169086,1713766265278,-151.0,0.00016438,2]
[323169087,1713766265288,-151.0,0.00016438,2]
[323169088,1713766265297,-151.0,0.00016438,2]
[323169089,1713766265307,-194.76245,0.00016438,2]
[323169090,1713766265317,-150.5602138,0.00016463,2]
[323169091,1713766265327,-4170.38448512,0.0001648,2]
[323169092,1713766265337,-1223.49294636,0.000165,2]
[323169093,1713766265347,-1008.725671,0.000165,3]
[323169094,1713766265357,-150.0,0.000165,2]
[323169095,1713766265367,-515.3941188,0.00016507,2]
[323169096,1713766265377,-810.65923795,0.0001651,2]
[323169097,1713766265388,-150.0,0.00016533,2]
[323169098,1713766265398,-10177.74888624,0.0001655,6]
[323169099,1713766265431,-597.752826,0.00016338,2]
[323169100,1713766265441,-1427.12846711,0.0001655,6]
[323169101,1713766268326,-270.42728545,0.00014898,2]
[323169102,1713766268378,-142.52026342,0.00014898,2]
[323169103,1713766268387,-3402.97482603,0.00014898,2]
[323169104,1713766268397,-151.0,0.00015623,2]
[323169105,1713766268406,-151.0,0.00015623,2]
[323169106,1713766268415,-151.0,0.00016338,2]
[323169107,1713766268428,-151.0,0.00016338,2]
[323169108,1713766268437,-597.752826,0.00016416,2]
[323169109,1713766268446,-151.0,0.00016416,2]
[323169110,1713766268455,-151.0,0.00016416,2]
[323169111,1713766268464,-597.752826,0.00016427,2]
[323169112,1713766268473,-151.0,0.00016427,2]
[323169113,1713766268482,-151.0,0.00016427,2]
[323169114,1713766268491,-597.752826,0.00016438,2]
[323169115,1713766268500,-597.752826,0.00016438,2]
[323169116,1713766268510,-597.752826,0.00016438,2]
[323169117,1713766268520,-597.752826,0.00016438,2]
[323169118,1713766268530,-597.752826,0.00016438,2]
[323169119,1713766268539,-19210.10264665,0.0001655,6]
[323169120,1713766268548,-65171.62,0.0001655,6]
[323169121,1713766268557,-11072.75,0.0001655,6]
[323169122,1713766268566,-33040.17,0.0001655,6]
[323169123,1713766268576,-10718.8,0.0001655,6]
[323169124,1713766268585,-311.56254225,0.00016569,2]
[323169125,1713766268595,-500.0,0.000166,2]
[323169126,1713766268604,-3200.0,0.000166,6]
[323169127,1713766268614,-4170.38448512,0.00016622,2]
[323169128,1713766268623,-1212.5545204,0.00016656,2]
[323169129,1713766268632,-500.0,0.00016668,2]
[323169130,1713766268642,-500.0,0.00016677,2]
[323169131,1713766268650,-150.0,0.00016685,2]
[323169132,1713766268659,-500.0,0.00016686,2]
[323169133,1713766268670,-500.0,0.00016694,2]
[323169134,1713766268679,-2610.03,0.00016699,2]
[323169135,1713766268688,-20000.0,0.000167,2]
[323169136,1713766268696,-600.0,0.000167,6]
[323169137,1713766268705,-843.5016099,0.00016701,2]
[323169138,1713766268714,-474.4486993,0.00016701,2]
[323169139,1713766268722,-15174.31062447,0.00016701,2]
[323169140,1713766275421,1661.0,0.00013699,2]
[323169141,1713766282351,540.88171398,0.00010586,2]
[323169142,1713766284090,503.0,0.00013699,2]
[323169143,1713766310983,229.28,0.00013496,2]
[323169144,1713766544586,1171.56330243,0.00013,2]
[323169152,1713766627586,1442.49043052,0.00012,2]
[323169153,1713766627606,2000.0,0.00012,2]
[323169154,1713766627628,2000.0,0.00012,2]
[323169155,1713766627648,2000.0,0.00012,2]
[323169156,1713766627668,2000.0,0.00012,2]
[323169157,1713766627688,2000.0,0.00012,2]
[323169158,1713766627708,2000.0,0.00012,2]
[323169159,1713766627728,2000.0,0.00012,2]
[323169160,1713766627751,13385.94626705,0.00012,2]
[323169161,1713766696381,30000.0,0.00012,2]
[323169162,1713766706082,30000.0,0.00012,2]
[323169166,1713767052991,-155.0,0.00012709,2]
[323169167,1713767053030,-217.81,0.0001271,2]
[323169168,1713767053051,-155.0,0.000135,2]
[323169169,1713767053124,-217.81,0.000135,2]
[323169170,1713767053206,-813.38,0.000135,2]
[323169171,1713767215381,-1644.49,0.000135,2]
[323169172,1713767215404,-816.17949734,0.00013998,2]
[323169173,1713767215428,-150.0,0.00013999,2]
[323169174,1713767215450,-189.33050266,0.00014,2]
[323169178,1713767281911,-250.0,0.000137,2]
[323169179,1713767281936,-150.0,0.00013999,2]
[323169180,1713767281963,-847.01480337,0.00014,2]
[323169181,1713767281988,-52.98519663,0.00014,2]
[323169182,1713767312673,-155.0,0.00013998,2]
[323169183,1713767312695,-444.60541405,0.00013999,2]
[323169184,1713767312718,-578.39458595,0.00014,2]
[323169196,1713767432306,-488.11400013,0.00014,2]
[323169206,1713767432443,-548.2313059,0.00014,2]
[323169207,1713767432453,-637.72970057,0.00014,2]
[323169208,1713767432464,-18730.89051685,0.00014,2]
[323169209,1713767432474,-800.0,0.0001418,2]
[323169211,1713767432483,-352.20948315,0.00014501,2]
[323169215,1713767432512,-536.11051685,0.00014501,2]
[323169217,1713767432522,-4.77119713,0.00014523,2]
[323169256,1713767438397,-186.88880287,0.00014523,2]
[323169258,1713767438407,-203.32,0.00014533,2]
[323169260,1713767438416,-315.07306413,0.00014552,2]
[323169267,1713767438502,-9.98693587,0.00014552,2]
[323169268,1713767438511,-15017.31,0.00014552,2]
[323169269,1713767438521,-399.14554377,0.00014571,2]
[323169270,1713767438532,-2044.85445623,0.00014571,2]
[323169271,1713767438542,-3118.0,0.00014571,2]
[323169272,1713767438551,-1474.0,0.00014571,2]
[323169273,1713767438561,-1640.0,0.00014571,2]
[323169274,1713767438573,-2294.0,0.00014571,2]
[323169275,1713767438582,-1393.0,0.00014571,2]
[323169276,1713767438591,-1224.226,0.00014571,2]
[323169277,1713767438600,-1255.0,0.00014571,2]
[323169278,1713767438609,-1513.13581042,0.000146,2]
[323169279,1713767438619,-281.07,0.00014639,2]
[323169280,1713767438628,-1012.52,0.00014651,2]
[323169281,1713767438638,-1731.0,0.00014658,2]
[323169282,1713767438647,-503.0,0.00014658,2]
[323169283,1713767438656,-674.94,0.00014671,2]
[323169284,1713767438665,-280.08,0.00014687,2]
[323169285,1713767438675,-181.86,0.0001469,2]
[323169286,1713767438684,-155.92302996,0.0001474,2]
[323169287,1713767438693,-284.16251043,0.0001474,2]
[323169288,1713767438702,-155.79661018,0.0001474,2]
[323169289,1713767438712,-499.99,0.00014873,2]
[323169290,1713767438721,-217.81,0.00014974,2]
[323169291,1713767438730,-2612.93916377,0.00015,2]
[323169309,1713767440746,-320.30803697,0.00015,2]
[323169310,1713767442233,-1004.3749924,0.00015,2]
[323169311,1713767442396,-1817.50728,0.00015,2]
[323169367,1713767443442,-750.2219725,0.00015,2]
[323169371,1713767443714,-2968.23823805,0.00015,2]
[323169699,1713767447062,-324.38,0.00014,2]
[323169707,1713767447122,-711.96530603,0.00014,2]
[323169709,1713767447131,-358.5334567,0.00014682,2]
[323171259,1713767504889,-4175.78613797,0.00013873,2]
[323171260,1713767504909,-1036.34530603,0.00014523,2]
[323171261,1713767504931,-1684.0,0.00014658,2]
[323171262,1713767504956,-1498.4665433,0.00014682,2]
[323171263,1713767504980,-8314.06567215,0.00015,2]
[323171264,1713767505002,-167.87735464,0.00015,2]
[323171265,1713767505022,-155.0,0.00015,2]
[323171266,1713767505043,-3586.0,0.00015,2]
[323171267,1713767505064,-5000.0,0.00015,2]
[323171268,1713767506705,1750.0,0.00012,2]
[323171269,1713767507811,1800.0,0.00014,2]
[323171270,1713767513144,700.0,0.0001418,2]
[323171271,1713767523068,1036.34530603,0.00014682,2]
[323171272,1713767530042,250.0,0.0001469,2]
[323171274,1713767538969,1036.34530603,0.00014682,2]
[323171275,1713767551436,265.12,0.00013082,2]
[323171276,1713767552149,313.6062,0.000149,2]
[323171278,1713767556962,1036.34530603,0.00014682,2]
[323171279,1713767562107,4514.1844093,0.00027111,120]
[323171280,1713767570094,155.0,0.00015,2]
[323171281,1713767581005,1036.34530603,0.00014682,2]
[323171282,1713767588673,155.0,0.00015,2]
[323171283,1713767590928,1046.77527222,0.00014909,2]
[323171284,1713767597001,1036.34530603,0.00014682,2]
[323171285,1713767606077,155.0,0.00015,2]
[323171286,1713767614976,1036.34530603,0.00014682,2]
[323171287,1713767622318,155.0,0.00015,2]
[323171288,1713767625716,150.0,0.00014852,2]
[323171289,1713767634956,162.0355115,0.00014909,2]
[323171290,1713767636972,285.79013434,0.00014682,2]
[323171291,1713767640091,155.0,0.00015,2]
[323171292,1713767645428,210.88262796,0.00014682,2]
[323171293,1713767654635,322.88850488,0.00011746,2]
[323171294,1713767658149,155.0,0.00015,2]
[323171295,1713767677440,280.20272992,0.00011746,2]
[323171296,1713767680098,155.0,0.00015,2]
[323171297,1713767681339,241.86,0.00014827,2]
[323171298,1713767695867,182.24443467,0.00011746,2]
[323171299,1713767697556,1606.0,0.00014909,2]
[323171300,1713767704409,5000.0,0.00015,2]
[323171301,1713767712675,2511.98173424,0.00014902,2]
[323171309,1713768161139,5000.0,0.00012,2]
[323171311,1713768190720,-4000.0,0.00012527,2]
[323171312,1713768191119,-4000.0,0.00012527,2]
[323171313,1713768191973,-4000.0,0.00012527,2]
[323171314,1713768192652,-2649.42728545,0.00012527,2]
[323171319,1713768240315,1049.2502022,0.00012527,2]
[323171323,1713768266613,301.32251235,0.00012527,2]
[323171324,1713768266636,245.336843,0.00012527,2]
[323171327,1713768279088,3754.663157,0.00012527,2]
[323171328,1713768279110,576.81432628,0.00012527,2]
[323171329,1713768282358,546.65935535,0.00012527,2]
[323171332,1713768300267,546.65935535,0.00012527,2]
[323171333,1713768322259,546.65935535,0.00012527,2]
[323171334,1713768340912,546.65935535,0.00012527,2]
[323171335,1713768341842,626.5339564,0.00012527,2]
[323171336,1713768360264,546.65935535,0.00012527,2]
[323171337,1713768380269,63.35494057,0.00012527,2]
[323171338,1713768380290,483.30441478,0.00012527,2]
[323171339,1713768402322,546.65935535,0.00012527,2]
[323171340,1713768418281,546.65935535,0.00012527,2]
[323171341,1713768440270,546.65935535,0.00012527,2]
[323171342,1713768456334,546.65935535,0.00012527,2]
[323171343,1713768476542,546.65935535,0.00012527,2]
[323171344,1713768498276,546.65935535,0.00012527,2]
[323171345,1713768500318,236.73945312,0.00012527,2]
[323171346,1713768500340,507.53833603,0.00012527,2]
[323171347,1713768520290,287.49666041,0.00012527,2]
[323171348,1713768527571,1862.65559052,0.00012527,2]
[323171353,1713768567598,1342.30941304,0.00012527,2]
[323171354,1713768567619,4000.0,0.00012527,2]
[323171355,1713768567643,1157.69058696,0.00012527,2]
[323171356,1713768604162,179.94670005,0.00012527,2]
[323171357,1713768607732,2662.36271299,0.00012527,2]
[323171358,1713768607755,4000.0,0.00012527,2]
[323171359,1713768607777,602.92548125,0.00012527,2]
[323171370,1713768631543,-304.88,0.00012528,2]
[323171371,1713768631553,-226.959536,0.00013973,2]
[323171372,1713768631562,-1804.85853056,0.00014025,2]
[323171373,1713768631575,-516.60266984,0.00014025,2]
[323171374,1713768631584,-1450.0,0.00014026,2]
[323171375,1713768631594,-200.0,0.00014126,2]
[323171376,1713768631603,-6344.33,0.00014166,2]
[323171377,1713768631613,-500.0,0.00014167,2]
[323171378,1713768631622,-539.96,0.00014169,2]
[323171379,1713768631631,-21276.65,0.00014174,2]
[323171380,1713768631641,-151.05,0.00014177,2]
[323171381,1713768631651,-500.0,0.00014191,2]
[323171382,1713768631661,-2048.11,0.00014194,2]
[323171383,1713768631671,-16554.49,0.00014194,2]
[323171384,1713768631680,-241.86,0.0001427,2]
[323171385,1713768631689,-153.68,0.00014277,2]
[323171386,1713768631699,-1138.63,0.00014294,2]